fUSD/lending_fUSD_20240301
["ID","MTS","AMOUNT","RATE_DAILY","PERIOD"]
[315899301,1709254233057,-150.87,0.00021191,2]
[315899302,1709254233067,-613.46062,0.00021265,2]
[315899303,1709254233078,-2576.69,0.00021276,2]
[315899304,1709254233087,-224.99,0.00021276,3]
[315899305,1709254233097,-1284.2188,0.00021316,2]
[315899306,1709254233106,-8149.84,0.00021381,2]
[315899307,1709254233115,-302.78,0.00021381,2]
[315899308,1709254233125,-150.87,0.00021407,2]
[315899310,1709254233134,-2566.18,0.0002145,2]
[315899311,1709254233143,-158.19776716,0.00021455,2]
[315899312,1709254233153,-499.99,0.00021481,2]
[315899313,1709254233162,-365.56231564,0.000216,2]
[315899314,1709254233172,-150.87,0.00021624,2]
[315899315,1709254233181,-2486.84,0.00021671,2]
[315899316,1709254233191,-20392.91923478,0.000217,2]
[315899318,1709254233211,-1881.901626,0.000217,2]
[315899320,1709254233223,-326.43046132,0.000217,2]
[315899345,1709254238105,-203.0,0.00019369,2]
[315899346,1709254238115,-3572.72162533,0.000217,2]
[315899347,1709254238125,-158.19776716,0.00021735,2]
[315899348,1709254238134,-1665.06239999,0.00021798,3]
[315899349,1709254238143,-1000.0,0.00021817,2]
[315899350,1709254238153,-1467.52592233,0.00021817,2]
[315899351,1709254238202,-3532.47407767,0.00021817,2]
[315899352,1709254238211,-5000.0,0.00021817,2]
[315899353,1709254238220,-814.14446806,0.00021817,2]
[315899354,1709254238229,-150.87,0.0002184,2]
[315899355,1709254238238,-154.74392905,0.00021868,2]
[315899356,1709254238247,-4177.52944939,0.000219,2]
[315899357,1709254238256,-5500.0,0.000219,2]
[315899358,1709254238266,-8000.0,0.000219,2]
[315899359,1709254238275,-653.0,0.000219,2]
[315899360,1709254238284,-482.74473105,0.00021915,2]
[315899361,1709254238294,-918.00154469,0.00021916,2]
[315899362,1709254238303,-246.50600225,0.00021916,2]
[315899363,1709254238313,-2492.56,0.00021917,2]
[315899364,1709254238323,-439.18786802,0.00021917,2]
[315899365,1709254238335,-11244.35034699,0.00021917,2]
[315899366,1709254238350,-2000.0,0.00021917,2]
[315899367,1709254238359,-200.0,0.00021917,2]
[315899368,1709254238368,-500.0,0.00021917,2]
[315899370,1709254238379,-500.0,0.00021917,2]
[315899371,1709254238387,-300.47461306,0.00021917,2]
[315899375,1709254238410,-432.79538694,0.00021917,2]
[315899377,1709254238419,-485.20615775,0.00021917,2]
[315899379,1709254238433,-14.79384225,0.00021917,2]
[315899381,1709254238442,-500.0,0.00021917,2]
[315899383,1709254238451,-425.7515773,0.00021917,2]
[315899385,1709254238463,-74.2484227,0.00021917,2]
[315899386,1709254238473,-500.0,0.00021917,2]
[315899388,1709254238482,-41.3093613,0.00021917,2]
[315899389,1709254238498,-458.6906387,0.00021917,2]
[315899390,1709254238507,-382.71002182,0.00021917,2]
[315899397,1709254243331,-518.77421142,0.00020996,2]
[315899398,1709254243341,-518.77421142,0.00021407,2]
[315899399,1709254243352,-518.77421142,0.00021817,2]
[315899400,1709254243362,-117.28997818,0.00021917,2]
[315899401,1709254243371,-500.0,0.00021917,2]
[315899402,1709254243381,-500.0,0.00021917,2]
[315899403,1709254243390,-500.0,0.00021917,2]
[315899418,1709254243603,-500.0,0.00021917,2]
[315899420,1709254243630,-500.0,0.00021917,2]
[315899423,1709254243639,-500.0,0.00021917,2]
[315899425,1709254243650,-500.0,0.00021917,2]
[315899427,1709254243659,-500.0,0.00021917,2]
[315899429,1709254243669,-500.0,0.00021917,2]
[315899431,1709254243678,-500.0,0.00021917,2]
[315899433,1709254243688,-500.0,0.00021917,2]
[315899435,1709254243698,-500.0,0.00021917,2]
[315899437,1709254243707,-867.75,0.00021917,2]
[315899439,1709254243716,-500.0,0.00021917,2]
[315899441,1709254243726,-500.0,0.00021917,2]
[315899443,1709254243736,-502.70820724,0.00021917,2]
[315899445,1709254243745,-566.07148584,0.00021917,2]
[315899446,1709254243756,-500.0,0.00021917,2]
[315899448,1709254243765,-13.06787367,0.00021917,2]
[315899455,1709254243812,-486.93212633,0.00021917,2]
[315899457,1709254243826,-500.0,0.00021917,2]
[315899459,1709254243835,-500.0,0.00021917,2]
[315899461,1709254243844,-500.0,0.00021917,2]
[315899463,1709254243854,-500.0,0.00021917,2]
[315899465,1709254243863,-604.56285158,0.00021917,2]
[315899467,1709254243872,-500.0,0.00021917,2]
[315899469,1709254243882,-500.0,0.00021917,2]
[315899471,1709254243891,-553.49321965,0.00021917,2]
[315899473,1709254243901,-500.0,0.00021917,2]
[315899475,1709254243910,-500.0,0.00021917,2]
[315899477,1709254243919,-500.0,0.00021917,2]
[315899479,1709254243929,-500.0,0.00021917,2]
[315899481,1709254243940,-500.0,0.00021917,2]
[315899483,1709254243950,-500.0,0.00021917,2]
[315899485,1709254243960,-500.0,0.00021917,2]
[315899487,1709254243970,-500.0,0.00021917,2]
[315899489,1709254243979,-648.05761462,0.00021917,2]
[315899491,1709254243988,-500.0,0.00021917,2]
[315899493,1709254243998,-500.0,0.00021917,2]
[315899495,1709254244007,-556.63618423,0.00021917,2]
[315899497,1709254244018,-500.0,0.00021917,2]
[315899499,1709254244027,-500.0,0.00021917,2]
[315899501,1709254244036,-500.0,0.00021917,2]
[315899503,1709254244046,-500.0,0.00021917,2]
[315899505,1709254244055,-500.0,0.00021917,2]
[315899507,1709254244064,-500.0,0.00021917,2]
[315899509,1709254244074,-500.0,0.00021917,2]
[315899511,1709254244083,-500.0,0.00021917,2]
[315899513,1709254244093,-500.0,0.00021917,2]
[315899515,1709254244103,-500.0,0.00021917,2]
[315899517,1709254244112,-500.0,0.00021917,2]
[315899519,1709254244122,-500.0,0.00021917,2]
[315899521,1709254244132,-500.0,0.00021917,2]
[315899523,1709254244142,-500.0,0.00021917,2]
[315899526,1709254244151,-500.0,0.00021917,2]
[315899528,1709254244161,-500.0,0.00021917,2]
[315899530,1709254244170,-500.0,0.00021917,2]
[315899532,1709254244180,-500.0,0.00021917,2]
[315899533,1709254244191,-500.0,0.00021917,2]
[315899536,1709254244200,-500.0,0.00021917,2]
[315899537,1709254244209,-500.0,0.00021917,2]
[315899540,1709254244219,-500.0,0.00021917,2]
[315899542,1709254244229,-500.0,0.00021917,2]
[315899544,1709254244239,-500.0,0.00021917,2]
[315899546,1709254244248,-500.0,0.00021917,2]
[315899548,1709254244258,-500.0,0.00021917,2]
[315899550,1709254244267,-510.93443177,0.00021917,2]
[315899552,1709254244277,-500.0,0.00021917,2]
[315899554,1709254244286,-500.0,0.00021917,2]
[315899556,1709254244296,-500.0,0.00021917,2]
[315899558,1709254244305,-500.0,0.00021917,2]
[315899560,1709254244314,-500.0,0.00021917,2]
[315899562,1709254244324,-500.0,0.00021917,2]
[315899564,1709254244334,-500.0,0.00021917,2]
[315899566,1709254244343,-1053.2,0.00021917,2]
[315899568,1709254244355,-349.19536219,0.00021917,2]
[315899571,1709254244374,-150.80463781,0.00021917,2]
[315899573,1709254244385,-277.50794063,0.00021917,2]
[315899578,1709254244422,-222.49205937,0.00021917,2]
[315899580,1709254244433,-500.0,0.00021917,2]
[315899582,1709254244445,-500.0,0.00021917,2]
[315899584,1709254244454,-14.87629461,0.00021917,2]
[315899586,1709254244466,-485.12370539,0.00021917,2]
[315899588,1709254244476,-500.0,0.00021917,2]
[315899591,1709254244486,-500.0,0.00021917,2]
[315899593,1709254244496,-500.0,0.00021917,2]
[315899595,1709254244506,-596.63,0.00021917,2]
[315899597,1709254244515,-128.50749707,0.00021917,2]
[315899599,1709254244528,-371.49250293,0.00021917,2]
[315899601,1709254244537,-500.0,0.00021917,2]
[315899603,1709254244546,-500.0,0.00021917,2]
[315899605,1709254244556,-694.89,0.00021917,2]
[315899607,1709254244566,-337.35586219,0.00021917,2]
[315899609,1709254244577,-162.64413781,0.00021917,2]
[315899611,1709254244587,-500.0,0.00021917,2]
[315899613,1709254244597,-358.56667663,0.00021917,2]
[315899616,1709254244609,-182.60778636,0.00021917,2]
[315899618,1709254244618,-215.77217763,0.00021917,2]
[315899766,1709254248004,-405.1293396,0.00021916,2]
[315899767,1709254248014,-284.22782237,0.00021917,2]
[315899768,1709254248024,-417.24233803,0.00021917,2]
[315899770,1709254248283,-82.75766197,0.00021917,2]
[315899771,1709254248292,-500.0,0.00021917,2]
[315899772,1709254248302,-500.0,0.00021917,2]
[315899773,1709254248312,-500.0,0.00021917,2]
[315899774,1709254248321,-500.0,0.00021917,2]
[315899775,1709254248331,-500.0,0.00021917,2]
[315899776,1709254248344,-500.0,0.00021917,2]
[315899777,1709254248354,-1218.29,0.00021917,2]
[315899778,1709254248363,-500.0,0.00021917,2]
[315899779,1709254248372,-500.0,0.00021917,2]
[315899780,1709254248382,-500.0,0.00021917,2]
[315899781,1709254248392,-358.15233803,0.00021917,2]
[315899782,1709254248410,-141.84766197,0.00021917,2]
[315899783,1709254248419,-144.5054018,0.00021917,2]
[315899785,1709254437799,-405.1293396,0.00019999,2]
[315899786,1709254437827,-540.2706604,0.0002,3]
[315899791,1709255030415,-151.0,0.00026183,120]
[315899792,1709255030465,-150.0,0.00026786,120]
[315899793,1709255070352,-140000.0,0.00021399,30]
[315899794,1709255092591,186.0,0.0002618,120]
[315899799,1709255432374,-2964.27789419,0.00018083,2]
[315899800,1709255432384,-616.213264,0.00018084,2]
[315899801,1709255432394,-1042.53818806,0.00018086,2]
[315899802,1709255432403,-155.24341688,0.00018087,2]
[315899803,1709255432413,-233.79,0.00018187,2]
[315899804,1709255432423,-155.24341679,0.00018317,2]
[315899805,1709255432432,-155.24341679,0.00018546,2]
[315899806,1709255432442,-203.0,0.00018755,2]
[315899807,1709255432452,-155.24341679,0.00018776,2]
[315899808,1709255432463,-1509.36076141,0.00018922,2]
[315899809,1709255432472,-150.0,0.00019004,2]
[315899810,1709255432481,-155.24341679,0.00019005,2]
[315899811,1709255432491,-2944.8,0.00019005,2]
[315899812,1709255432501,-155.24341679,0.00019235,2]
[315899813,1709255432511,-155.24341679,0.00019464,2]
[315899814,1709255432520,-360.0,0.00019628,2]
[315899815,1709255432529,-155.24341679,0.00019694,2]
[315899816,1709255432539,-155.24341679,0.00019923,2]
[315899817,1709255432549,-211.07238593,0.0001999,2]
[315899818,1709255432558,-150.95,0.00019991,2]
[315899819,1709255432567,-2209.7293396,0.0002,3]
[315899820,1709255432581,-456.04541734,0.0002,2]
[315899821,1709255432591,-182.42,0.00020023,2]
[315899822,1709255432601,-175.25,0.00020048,2]
[315899823,1709255432610,-640.0,0.00020139,2]
[315899824,1709255432619,-1167.0,0.00020146,2]
[315899825,1709255432630,-155.24341679,0.00020153,2]
[315899826,1709255432640,-150.95,0.00020165,2]
[315899827,1709255432651,-164.49,0.00020302,10]
[315899828,1709255432660,-150.95,0.00020338,2]
[315899829,1709255432670,-155.24341679,0.00020382,2]
[315899830,1709255432683,-174.87012141,0.00020397,2]
[315899831,1709255432693,-233.79,0.0002045,2]
[315899832,1709255432703,-150.95,0.00020512,2]
[315899833,1709255432715,-155.24341679,0.00020612,2]
[315899834,1709255432724,-919.92,0.00020641,2]
[315899835,1709255432734,-407.29,0.00020641,2]
[315899836,1709255432744,-919.92,0.00020641,2]
[315899837,1709255432755,-407.29,0.00020641,2]
[315899838,1709255432764,-407.29,0.00020641,2]
[315899839,1709255432773,-919.92,0.00020641,2]
[315899840,1709255432783,-407.29,0.00020641,2]
[315899841,1709255432793,-919.92,0.00020641,2]
[315899842,1709255432805,-919.92,0.00020641,2]
[315899843,1709255432815,-407.29,0.00020641,2]
[315899844,1709255432824,-919.92,0.00020641,2]
[315899845,1709255432833,-878.52,0.00020641,2]
[315899846,1709255432843,-150.95,0.00020686,2]
[315899847,1709255432852,-150.0,0.00020778,2]
[315899848,1709255432867,-424.47,0.00020778,2]
[315899849,1709255432876,-848.26,0.00020778,2]
[315899850,1709255432886,-413.71,0.00020778,2]
[315899851,1709255432896,-345.06,0.00020778,2]
[315899852,1709255432906,-150.0,0.00020778,2]
[315899853,1709255432915,-150.0,0.00020778,2]
[315899854,1709255432925,-150.0,0.00020778,2]
[315899855,1709255432935,-345.06,0.00020778,2]
[315899856,1709255432945,-150.0,0.00020778,2]
[315899857,1709255432956,-413.71,0.00020778,2]
[315899858,1709255432966,-158.21,0.00020778,2]
[315899859,1709255432975,-397.3,0.00020778,2]
[315899860,1709255432985,-345.06,0.00020778,2]
[315899861,1709255432994,-150.0,0.00020778,2]
[315899862,1709255433004,-150.0,0.00020778,2]
[315899863,1709255433014,-345.06,0.00020778,2]
[315899864,1709255433023,-150.0,0.00020778,2]
[315899865,1709255433033,-168.07,0.00020778,2]
[315899866,1709255433043,-345.06,0.00020778,2]
[315899867,1709255433052,-150.0,0.00020778,2]
[315899868,1709255433062,-165.95,0.00020796,2]
[315899869,1709255433071,-155.24341679,0.00020841,2]
[315899870,1709255433081,-150.95,0.00020859,2]
[315899871,1709255433091,-231.68142865,0.00020952,2]
[315899872,1709255433100,-1040.50535985,0.00020952,4]
[315899873,1709255433109,-3350.92614974,0.00020952,2]
[315899874,1709255433119,-150.95,0.00021033,2]
[315899875,1709255433128,-155.24341679,0.00021071,2]
[315899876,1709255433137,-160.85,0.00021096,2]
[315899877,1709255433147,-39435.79506478,0.00021198,2]
[315899878,1709255433156,-333.3971,0.000212,2]
[315899879,1709255433166,-933.79,0.00021289,3]
[315899880,1709255433175,-466.89,0.00021289,3]
[315899881,1709255433185,-233.45,0.00021289,3]
[315899882,1709255433194,-700.37,0.00021289,3]
[315899883,1709255433204,-1091.00354935,0.00021298,2]
[315899884,1709255433239,-1310.37323516,0.00021298,2]
[315899885,1709255433249,-3433.61628,0.00021298,2]
[315899886,1709255433259,-2432.37757672,0.00021298,2]
[315899887,1709255433268,-3551.22682296,0.00021298,2]
[315899888,1709255433278,-351.78692976,0.00021298,2]
[315899889,1709255433289,-669.3104652,0.00021298,2]
[315899890,1709255433298,-203.4877886,0.00021298,3]
[315899891,1709255433308,-1353.70943414,0.00021298,4]
[315899892,1709255433318,-309.48785809,0.00021298,2]
[315899893,1709255433328,-28031.20094655,0.00021298,2]
[315899894,1709255433338,-858.03297463,0.00021298,2]
[315899895,1709255433348,-500.0,0.00021299,2]
[315899896,1709255433358,-2527.8799,0.00021299,2]
[315899897,1709255433367,-2312.67592868,0.00021299,2]
[315899898,1709255433381,-372.88887261,0.00021299,2]
[315899899,1709255433394,-746.41878368,0.00021299,2]
[315899900,1709255433410,-256.99334814,0.00021299,2]
[315899901,1709255433423,-1818.54248325,0.00021299,2]
[315899902,1709255433449,-238.81598364,0.00021299,2]
[315899903,1709255433461,-282.82671133,0.00021299,2]
[315899904,1709255433470,-282.82671129,0.00021299,2]
[315899905,1709255433479,-282.82671129,0.000213,2]
[315899906,1709255433489,-282.82671129,0.000213,2]
[315899907,1709255433498,-10.3174411,0.000213,2]
[315899908,1709255434105,-144.92597569,0.000213,2]
[315899909,1709255434114,-282.82671129,0.000213,2]
[315899910,1709255434123,-150.0,0.00021318,2]
[315899911,1709255434132,-439.61514555,0.0002138,2]
[315899921,1709255438328,-3377.5,0.00021297,2]
[315899922,1709255438385,-1647.00585288,0.00021297,2]
[315899923,1709255438397,-1046.40190235,0.00021297,2]
[315899924,1709255438407,-8038.51847573,0.0002138,2]
[315899925,1709255438417,-221.99073488,0.00021387,2]
[315899926,1709255438426,-155.0,0.00021396,2]
[315899927,1709255438436,-212.547,0.00021397,30]
[315899928,1709255438446,-1061855.52390129,0.00021397,4]
[315899929,1709255438462,-1109.60014573,0.00021397,4]
[315899930,1709255438473,-1876.61652136,0.00021397,4]
[315899931,1709255438637,-1160.70940192,0.00021397,4]
[315899932,1709255438664,-4821989.94701382,0.00021397,4]
[315899933,1709255438676,-275.08442939,0.00021397,2]
[315899934,1709255438685,-163.31001827,0.00021397,2]
[315899935,1709255438699,-157.68094785,0.00021397,2]
[315899936,1709255438712,-507.91115457,0.00021397,2]
[315899937,1709255438724,-175.34244368,0.00021397,2]
[315899939,1709255438735,-203.97568013,0.00021397,2]
[315899941,1709255438745,-7270746.0016244,0.00021398,30]
[315899943,1709255438755,-919.64028814,0.00021398,2]
[315899945,1709255438764,-1000.0,0.00021398,2]
[315899946,1709255438773,-628.56432977,0.00021398,2]
[315899948,1709255438784,-404.85893334,0.00021398,2]
[315899950,1709255438794,-234.81376379,0.00021398,2]
[315899952,1709255438804,-396.67969995,0.00021398,5]
[315899955,1709255438814,-155.06983262,0.00021399,2]
[315899956,1709255438824,-155.0,0.00021399,2]
[315899958,1709255438833,-422.83228666,0.00021399,2]
[315899960,1709255438844,-120177.32231291,0.00021399,2]
[315899963,1709255438854,-456.44284337,0.00021499,2]
[315899965,1709255438864,-500.0,0.00021499,2]
[315899967,1709255438873,-500.0,0.00021499,2]
[315899969,1709255438882,-500.0,0.00021499,2]
[315899971,1709255438891,-500.0,0.00021499,2]
[315899973,1709255438901,-500.0,0.00021499,2]
[315899974,1709255438911,-500.0,0.00021499,2]
[315899976,1709255438920,-507.46,0.00021499,2]
[315899979,1709255438930,-334.3302,0.000215,2]
[315899981,1709255438939,-12654.6111,0.000215,2]
[315899983,1709255438949,-956.0308,0.000215,2]
[315899985,1709255438958,-2727.8438,0.000215,2]
[315899986,1709255438970,-584809.3042,0.000215,2]
[315899989,1709255438980,-2339.4598,0.000215,2]
[315899991,1709255438989,-29847.8985,0.000215,2]
[315899993,1709255438999,-155242.3396,0.000215,2]
[315899995,1709255439008,-3228.7871,0.00021524,2]
[315899997,1709255439018,-188.76,0.00021545,2]
[315899999,1709255439027,-482.74473105,0.00021598,2]
[315900001,1709255439036,-4174.55486146,0.00021598,2]
[315900003,1709255439045,-502.62935439,0.00021599,2]
[315900005,1709255439054,-408.69946908,0.00021599,2]
[315900007,1709255439063,-115749.2325,0.000216,2]
[315900009,1709255439073,-345.06,0.000216,2]
[315900011,1709255439082,-150.0,0.000216,2]
[315900013,1709255439091,-345.06,0.000216,2]
[315900015,1709255439100,-150.0,0.000216,2]
[315900017,1709255439110,-638.74,0.000216,2]
[315900019,1709255439119,-150.0,0.000216,2]
[315900020,1709255439128,-150.0,0.000216,2]
[315900021,1709255439137,-150.0,0.000216,2]
[315900022,1709255439146,-150.0,0.000216,2]
[315900023,1709255439155,-150.0,0.000216,2]
[315900024,1709255439164,-150.0,0.000216,2]
[315900025,1709255439174,-150.0,0.000216,2]
[315900026,1709255439183,-919.92,0.000216,2]
[315900027,1709255439192,-150.0,0.000216,2]
[315900028,1709255439202,-150.0,0.000216,2]
[315900029,1709255439212,-709.72,0.000216,2]
[315900030,1709255439222,-4139.0,0.00021644,2]
[315900031,1709255439231,-5478.0,0.00021644,2]
[315900032,1709255439240,-150.0,0.00021661,2]
[315900033,1709255439250,-153.34897385,0.00021697,2]
[315900034,1709255439260,-1000.0,0.000217,2]
[315900035,1709255439269,-203.08392764,0.000217,2]
[315900036,1709255439280,-11364.65300578,0.00021705,2]
[315900037,1709255439290,-56425.41136987,0.000218,4]
[315900038,1709255439299,-3805.76975292,0.000218,2]
[315900039,1709255439310,-151.0,0.000218,2]
[315900040,1709255439319,-246.50600225,0.00021804,2]
[315900041,1709255439329,-324.17679744,0.00021816,5]
[315900042,1709255439339,-55555.0,0.00021817,2]
[315900043,1709255439349,-1000.0,0.00021817,2]
[315900044,1709255439359,-5000.0,0.00021817,2]
[315900045,1709255439369,-211.0,0.00021817,2]
[315900046,1709255439378,-165.95,0.00021836,2]
[315900047,1709255439388,-200.0,0.00021843,2]
[315900048,1709255439397,-1546.0,0.000219,2]
[315900049,1709255439406,-4176.0,0.000219,2]
[315900050,1709255439416,-2000.0,0.000219,2]
[315900051,1709255439426,-500.0,0.000219,2]
[315900052,1709255439436,-200.0,0.000219,2]
[315900053,1709255439446,-11048.46899696,0.000219,2]
[315900054,1709255439455,-150.0,0.000219,2]
[315900055,1709255439467,-1000.0,0.000219,4]
[315900056,1709255439476,-827.0,0.000219,2]
[315900057,1709255439485,-310.0,0.000219,2]
[315900058,1709255439495,-479.20452172,0.000219,2]
[315900059,1709255439506,-1000.0,0.000219,2]
[315900060,1709255439515,-441.33356912,0.000219,2]
[315900061,1709255439525,-441.33356909,0.000219,2]
[315900062,1709255439535,-151.0,0.000219,2]
[315900063,1709255439545,-5500.0,0.000219,2]
[315900064,1709255439556,-830.77304446,0.000219,2]
[315900065,1709255439566,-8000.0,0.000219,2]
[315900066,1709255439575,-2009.64714934,0.00021914,2]
[315900067,1709255439584,-61590.93767087,0.00021916,2]
[315900068,1709255439594,-284.58560959,0.00021916,2]
[315900069,1709255439605,-800.6326443,0.00021916,2]
[315900070,1709255439615,-500.0,0.00021917,2]
[315900071,1709255439625,-2000.0,0.00021917,2]
[315900072,1709255439634,-200.0,0.00021917,2]
[315900073,1709255439646,-1009.31,0.00021917,2]
[315900074,1709255439657,-506.14080975,0.00021917,2]
[315900075,1709255439666,-500.0,0.00021917,2]
[315900076,1709255439678,-665.94,0.00021917,2]
[315900077,1709255439687,-500.0,0.00021917,2]
[315900078,1709255439696,-500.0,0.00021917,2]
[315900079,1709255439706,-500.0,0.00021917,2]
[315900080,1709255439718,-500.0,0.00021917,2]
[315900081,1709255439728,-500.0,0.00021917,2]
[315900082,1709255439738,-500.0,0.00021917,2]
[315900083,1709255439747,-500.0,0.00021917,2]
[315900084,1709255439758,-500.0,0.00021917,2]
[315900085,1709255439768,-500.0,0.00021917,2]
[315900086,1709255439778,-500.0,0.00021917,2]
[315900087,1709255439788,-500.0,0.00021917,2]
[315900088,1709255439797,-506.56950255,0.00021917,2]
[315900089,1709255439807,-339.76201207,0.00021917,2]
[315900090,1709255439818,-497.3984537,0.00021917,2]
[315900091,1709255439828,-500.0,0.00021917,2]
[315900092,1709255439838,-552.72028435,0.00021917,2]
[315900093,1709255439848,-500.0,0.00021917,2]
[315900094,1709255439857,-500.0,0.00021917,2]
[315900095,1709255439867,-500.0,0.00021917,2]
[315900096,1709255439876,-500.0,0.00021917,2]
[315900097,1709255439885,-500.0,0.00021917,2]
[315900098,1709255439894,-500.0,0.00021917,2]
[315900099,1709255439903,-1636.67,0.00021917,2]
[315900100,1709255439914,-500.0,0.00021917,2]
[315900101,1709255439924,-500.0,0.00021917,2]
[315900102,1709255439934,-500.0,0.00021917,2]
[315900103,1709255439943,-500.0,0.00021917,2]
[315900104,1709255439952,-500.0,0.00021917,2]
[315900105,1709255439962,-500.0,0.00021917,2]
[315900106,1709255439971,-500.0,0.00021917,2]
[315900107,1709255439980,-500.0,0.00021917,2]
[315900108,1709255439989,-500.0,0.00021917,2]
[315900109,1709255440324,-500.0,0.00021917,2]
[315900110,1709255440334,-500.0,0.00021917,2]
[315900111,1709255440344,-500.0,0.00021917,2]
[315900112,1709255440354,-500.0,0.00021917,2]
[315900113,1709255440363,-500.0,0.00021917,2]
[315900114,1709255440372,-500.0,0.00021917,2]
[315900115,1709255440381,-500.0,0.00021917,2]
[315900116,1709255440391,-500.0,0.00021917,2]
[315900117,1709255440400,-500.0,0.00021917,2]
[315900118,1709255440409,-454.89576816,0.00021917,2]
[315900119,1709255440418,-500.0,0.00021917,2]
[315900120,1709255440428,-500.0,0.00021917,2]
[315900121,1709255440437,-500.0,0.00021917,2]
[315900122,1709255440447,-392.68176204,0.00021917,2]
[315900123,1709255440457,-500.0,0.00021917,2]
[315900124,1709255440469,-500.0,0.00021917,2]
[315900125,1709255440479,-500.0,0.00021917,2]
[315900126,1709255440489,-500.0,0.00021917,2]
[315900127,1709255440499,-500.0,0.00021917,2]
[315900128,1709255440508,-500.0,0.00021917,2]
[315900129,1709255440517,-213.55434741,0.00021917,2]
[315900130,1709255440527,-222.49197055,0.00021917,2]
[315900131,1709255440537,-466.86945915,0.00021917,2]
[315900132,1709255440546,-490.27552394,0.00021917,2]
[315900133,1709255440555,-500.0,0.00021917,2]
[315900134,1709255440565,-500.0,0.00021917,2]
[315900135,1709255440574,-500.0,0.00021917,2]
[315900136,1709255440583,-524.37296963,0.00021917,2]
[315900137,1709255440593,-500.0,0.00021917,2]
[315900138,1709255440603,-536.09868449,0.00021917,2]
[315900139,1709255440612,-500.0,0.00021917,2]
[315900140,1709255440621,-500.0,0.00021917,2]
[315900141,1709255440631,-500.0,0.00021917,2]
[315900142,1709255440640,-500.0,0.00021917,2]
[315900143,1709255440649,-500.0,0.00021917,2]
[315900144,1709255440658,-500.0,0.00021917,2]
[315900145,1709255440667,-500.0,0.00021917,2]
[315900146,1709255440679,-500.0,0.00021917,2]
[315900147,1709255440688,-500.0,0.00021917,2]
[315900148,1709255440698,-500.0,0.00021917,2]
[315900149,1709255440707,-500.0,0.00021917,2]
[315900150,1709255440719,-500.0,0.00021917,2]
[315900151,1709255440728,-500.0,0.00021917,2]
[315900152,1709255440737,-500.0,0.00021917,2]
[315900153,1709255440746,-500.0,0.00021917,2]
[315900154,1709255440755,-500.0,0.00021917,2]
[315900155,1709255440764,-500.0,0.00021917,2]
[315900156,1709255440775,-500.0,0.00021917,2]
[315900157,1709255440784,-500.0,0.00021917,2]
[315900159,1709255440793,-500.0,0.00021917,2]
[315900160,1709255440802,-500.0,0.00021917,2]
[315900161,1709255440812,-500.0,0.00021917,2]
[315900162,1709255440821,-500.0,0.00021917,2]
[315900163,1709255440831,-620.06316407,0.00021917,2]
[315900164,1709255440841,-530.94,0.00021917,2]
[315900165,1709255440851,-500.0,0.00021917,2]
[315900166,1709255440860,-500.0,0.00021917,2]
[315900167,1709255440870,-500.0,0.00021917,2]
[315900168,1709255440880,-500.0,0.00021917,2]
[315900169,1709255440890,-500.0,0.00021917,2]
[315900170,1709255440900,-507.94694765,0.00021917,2]
[315900171,1709255440909,-500.0,0.00021917,2]